bitfinex/quotes_BTCUSD_20260215
["timestamp","ask_amount","ask_price","bid_price","bid_amount"]
[1771160979746,0.09503371,69512.0,69505.0,0.0002]
[1771160979910,0.02310171,69512.0,69502.0,0.07193959]
[1771160980111,0.07193038,69512.0,69505.0,0.07193725]
[1771160980373,0.07193038,69512.0,69499.0,0.27788853]
[1771160980374,0.28770166,69517.0,69499.0,0.07194288]
[1771160980497,0.02310171,69506.0,69500.0,0.07198175]
[1771160980687,0.02310171,69506.0,69500.0,4e-05]
[1771160981292,0.02310171,69506.0,69501.0,0.07194072]
[1771160981759,0.02310171,69506.0,69500.0,4e-05]
[1771160981760,0.07193349,69509.0,69502.0,0.07194035]
[1771160982140,0.09503459,69510.0,69497.0,0.28798087]
[1771160982141,0.02310171,69510.0,69497.0,0.00017399]
[1771160982543,0.02310171,69510.0,69501.0,0.07194139]
[1771160982544,0.07193313,69509.0,69501.0,0.07194139]
[1771160982917,0.07193002,69512.0,69499.0,0.07194315]
[1771160983120,0.07193453,69508.0,69499.0,0.07211714]
[1771160983324,0.07193453,69508.0,69500.0,0.26276408]
[1771160983527,0.03666165,69546.0,69499.0,0.00017399]
[1771160983528,0.26257073,69517.0,69499.0,0.00017399]
[1771160983728,4e-05,69534.0,69491.0,0.0002]
[1771160983729,0.07194969,69493.0,69491.0,0.0002]
[1771160983961,0.04854825,69493.0,69491.0,0.0002]
[1771160984169,0.16139484,69544.0,69491.0,0.0002]
[1771160984355,0.09566892,69495.0,69491.0,0.0002]
[1771160984994,0.02372116,69495.0,69492.0,0.00070921]
[1771160985125,0.09566879,69495.0,69492.0,0.00070921]
[1771160985327,0.02372116,69495.0,69492.0,0.00070921]
[1771160985657,0.07194694,69496.0,69492.0,0.00070921]
[1771160987558,0.09566871,69497.0,69492.0,0.00070921]
[1771160987744,0.0719483,69495.0,69492.0,0.00070921]
[1771160988969,0.07194675,69496.0,69492.0,0.00070921]
[1771160989569,0.09566871,69497.0,69492.0,0.00070921]
[1771160989770,0.07194686,69496.0,69492.0,0.00070921]
[1771160989979,0.07194764,69495.0,69492.0,0.00070921]
[1771160990849,0.07194764,69495.0,69490.0,1e-08]
[1771160991039,0.07194037,69502.0,69476.0,0.07196722]
[1771160991281,0.07194037,69502.0,69477.0,0.07224317]
[1771160991282,0.07195975,69484.0,69477.0,0.07224317]
[1771160991487,0.07195766,69486.0,69477.0,0.07224317]
[1771160991488,0.07195829,69485.0,69477.0,0.07224317]
[1771160991689,0.07195829,69485.0,69478.0,0.07196497]
[1771160991812,0.07195829,69485.0,69478.0,0.07196496]
[1771160992229,0.07179395,69485.0,69478.0,0.07196496]
[1771160992639,0.28776564,69503.0,69483.0,0.07195931]
[1771160992852,0.57541883,69515.0,69490.0,0.0002]
[1771160992853,0.07178731,69492.0,69490.0,0.0002]
[1771160993066,0.07195279,69491.0,69490.0,0.0002]
[1771160993870,0.02372116,69491.0,69472.0,0.28686067]
[1771160994071,1e-08,69483.0,69476.0,0.07196721]
[1771160994475,1e-08,69483.0,69466.0,0.0002]
[1771160994721,0.07196522,69478.0,69470.0,0.07197319]
[1771160995092,0.07196522,69478.0,69476.0,0.0002]
[1771160995311,0.02372116,69478.0,69476.0,0.0002]
[1771160995747,0.07196626,69477.0,69476.0,1e-08]
[1771160996011,0.09568742,69477.0,69476.0,1e-08]
[1771160997852,0.02372116,69474.0,69466.0,0.0002]
[1771160998402,0.0719704,69473.0,69466.0,0.0002]
[1771160998830,0.02372116,69474.0,69466.0,0.0002]
[1771160999035,0.02372116,69473.0,69466.0,0.0002]
[1771160999917,0.07197613,69468.0,69466.0,0.0002]
[1771161000467,0.07197652,69469.0,69466.0,0.0002]
[1771161000673,0.0719818,69462.0,69461.0,0.000277]
[1771161000873,0.28785022,69481.0,69462.0,0.28792306]
[1771161001113,1.78350954,69503.0,69462.0,0.26276408]
[1771161001114,0.02372116,69497.0,69462.0,0.26276408]
[1771161001478,0.02372116,69497.0,69461.0,0.00040664]
[1771161001479,0.07198701,69496.0,69484.0,0.07195797]
[1771161001639,0.07194555,69497.0,69491.0,0.26276408]
[1771161002060,0.07194555,69497.0,69486.0,4e-05]
[1771161002061,4e-05,69506.0,69493.0,0.33471273]
[1771161002253,4e-05,69506.0,69488.0,4e-05]
[1771161002254,8e-05,69520.0,69513.0,0.06472414]
[1771161002453,0.02376116,69536.0,69518.0,0.07192332]
[1771161002454,0.0723565,69526.0,69518.0,0.07192332]
[1771161002653,0.02376116,69536.0,69518.0,0.07192332]
[1771161002654,4e-05,69536.0,69518.0,0.26276408]
[1771161002822,0.00048661,69530.0,69523.0,0.33468261]
[1771161003021,0.00048661,69530.0,69519.0,0.02409659]
[1771161003245,0.00048661,69530.0,69520.0,0.02409659]
[1771161003449,0.00048661,69530.0,69521.0,0.26276408]
[1771161003450,0.00020961,69530.0,69521.0,0.26276408]
[1771161003661,0.00020961,69530.0,69524.0,0.07191717]
[1771161004496,0.00020961,69530.0,69525.0,0.07191638]
[1771161004670,0.00020961,69530.0,69524.0,0.07191756]
[1771161005663,0.00016961,69530.0,69524.0,0.07191756]
[1771161006047,0.00016961,69530.0,69525.0,0.07191579]
[1771161006255,0.00016961,69530.0,69524.0,0.07191756]
[1771161006462,0.00016961,69530.0,69516.0,0.28770227]
[1771161006654,0.00016961,69530.0,69524.0,0.07191671]
[1771161006902,0.00016961,69530.0,69525.0,0.07191556]
[1771161007074,0.00016961,69530.0,69524.0,0.07191671]
[1771161008309,4e-05,69526.0,69524.0,0.07187671]
[1771161008886,4e-05,69536.0,69528.0,0.02409659]
[1771161009117,4e-05,69542.0,69531.0,0.02409659]
[1771161009328,4e-05,69542.0,69538.0,0.0719021]
[1771161009699,4e-05,69542.0,69536.0,0.07190448]
[1771161009846,4e-05,69542.0,69538.0,0.07190301]
[1771161010048,4e-05,69542.0,69539.0,0.07190204]
[1771161010490,4e-05,69542.0,69540.0,0.07190103]
[1771161010709,4e-05,69542.0,69532.0,0.28686067]
[1771161011008,4e-05,69542.0,69537.0,0.07190388]
[1771161011359,4e-05,69542.0,69532.0,0.02409659]
[1771161011569,4e-05,69542.0,69526.0,4e-05]
[1771161011570,0.07190085,69541.0,69533.0,0.07190802]
[1771161012130,4e-05,69542.0,69528.0,0.02413659]
[1771161012346,4e-05,69540.0,69528.0,0.07191331]
[1771161012556,4e-05,69536.0,69531.0,0.07191003]
[1771161012753,4e-05,69536.0,69533.0,0.07190787]
[1771161012967,4e-05,69536.0,69531.0,0.07203964]
[1771161013182,0.07178006,69537.0,69529.0,0.07191204]
[1771161013395,0.07178006,69537.0,69526.0,4e-05]
[1771161013396,0.28762689,69535.0,69526.0,4e-05]
[1771161013676,0.07191099,69531.0,69526.0,4e-05]
[1771161013872,0.02292558,69534.0,69526.0,4e-05]
[1771161014085,0.09483388,69534.0,69526.0,4e-05]
[1771161014293,0.24894273,69536.0,69522.0,4e-05]
[1771161014294,0.24894273,69533.0,69522.0,4e-05]
[1771161014500,0.24894273,69533.0,69514.0,4e-05]
[1771161014501,0.02292558,69527.0,69514.0,4e-05]
[1771161014708,0.02292558,69527.0,69517.0,0.00014252]
[1771161014709,0.07192188,69520.0,69517.0,0.00014252]
[1771161014925,0.24894273,69527.0,69514.0,4e-05]
[1771161014926,0.27186831,69527.0,69514.0,4e-05]
[1771161015131,8e-05,69530.0,69510.0,0.34464]
[1771161015132,0.24894273,69524.0,69511.0,0.07193074]
[1771161015360,0.07192321,69519.0,69511.0,0.07207326]
[1771161015568,0.07192335,69519.0,69512.0,0.07193002]
[1771161015782,0.02292558,69523.0,69514.0,0.0719278]
[1771161015989,0.07192398,69518.0,69511.0,0.07207351]
[1771161016224,0.07192879,69514.0,69511.0,0.00014252]
[1771161016432,0.07192879,69514.0,69480.0,0.57569772]
[1771161016433,0.07192639,69516.0,69508.0,0.07193339]
[1771161016676,0.02300558,69530.0,69517.0,0.07192411]
[1771161016893,4e-05,69532.0,69524.0,0.0719173]
[1771161016894,0.07195031,69532.0,69524.0,0.0719173]
[1771161017096,4e-05,69532.0,69526.0,0.07191513]
[1771161017297,4e-05,69532.0,69525.0,0.07191634]
[1771161017487,0.07207902,69532.0,69524.0,0.07191749]
[1771161017675,0.00016952,69532.0,69524.0,0.0002]
[1771161017881,0.07191222,69530.0,69524.0,0.0002]
[1771161018079,0.24898273,69538.0,69524.0,0.0002]
[1771161018080,4e-05,69538.0,69535.0,0.07190623]
[1771161018256,0.07193928,69542.0,69536.0,0.34279294]
[1771161018257,4e-05,69542.0,69536.0,0.34279294]
[1771161018460,0.0004,69547.0,69535.0,0.00014252]
[1771161018684,0.07234907,69545.0,69537.0,0.07190343]
[1771161018909,0.07234907,69545.0,69538.0,0.00014252]
[1771161018910,0.07189828,69543.0,69538.0,0.00014252]
[1771161019114,0.07189729,69544.0,69537.0,0.07204667]
[1771161019654,0.07189729,69544.0,69537.0,0.00014252]
[1771161019981,0.0718985,69543.0,69537.0,0.00014252]
[1771161020183,0.071899,69542.0,69535.0,0.07190623]
[1771161020399,0.07189819,69543.0,69536.0,0.07204741]
[1771161020810,0.07189822,69543.0,69536.0,0.07204741]
[1771161021621,0.000453,69545.0,69540.0,0.07190031]
[1771161021838,0.000453,69545.0,69536.0,0.00014252]
[1771161021839,0.07189969,69542.0,69536.0,0.00014252]
[1771161022459,0.07234952,69545.0,69536.0,0.07204767]
[1771161022689,0.07234952,69545.0,69534.0,4e-05]
[1771161022690,0.000453,69545.0,69534.0,4e-05]
[1771161022896,0.24894273,69543.0,69534.0,4e-05]
[1771161023098,0.07190623,69535.0,69528.0,4e-05]
[1771161023301,0.02292558,69533.0,69528.0,4e-05]
[1771161023505,0.07190691,69535.0,69528.0,4e-05]
[1771161023709,0.07190691,69535.0,69528.0,0.00018252]
[1771161024506,0.07194317,69538.0,69528.0,0.00018252]
[1771161024648,4e-05,69538.0,69531.0,0.07190952]
[1771161024852,4e-05,69538.0,69528.0,0.00018252]
[1771161024853,4e-05,69538.0,69529.0,0.07191041]
[1771161025063,4e-05,69538.0,69528.0,0.00018252]
[1771161025264,4e-05,69538.0,69524.0,0.07211711]
[1771161025508,4e-05,69536.0,69524.0,0.00032952]
[1771161025707,0.07190909,69533.0,69524.0,0.07224509]
[1771161026018,0.0719085,69533.0,69526.0,0.07191477]
[1771161026252,4e-05,69536.0,69524.0,0.00032952]
[1771161026488,4e-05,69536.0,69529.0,0.0719115]
[1771161027514,0.07194587,69536.0,69529.0,0.0719115]
[1771161028014,4e-05,69536.0,69529.0,0.0719115]
[1771161028247,4e-05,69536.0,69531.0,0.34279836]
[1771161028448,0.07233897,69544.0,69537.0,0.07190345]
[1771161028674,0.00044,69544.0,69530.0,8e-05]
[1771161028919,0.0717403,69536.0,69530.0,8e-05]
[1771161029849,0.0719061,69537.0,69530.0,8e-05]
[1771161030253,0.0719061,69537.0,69530.0,0.07199137]
[1771161030660,0.07190518,69538.0,69530.0,8e-05]
[1771161031435,0.07190607,69536.0,69530.0,8e-05]
[1771161031966,0.28760573,69540.0,69530.0,8e-05]
[1771161031967,0.07190804,69534.0,69530.0,8e-05]
[1771161032169,0.07190895,69533.0,69530.0,8e-05]
[1771161032383,0.07190963,69532.0,69528.0,4e-05]
[1771161033105,0.07190963,69532.0,69530.0,0.0002]
[1771161033559,0.07190963,69532.0,69523.0,0.02301225]
[1771161033770,0.07203915,69532.0,69525.0,0.07191577]
[1771161035536,4e-05,69536.0,69524.0,0.02425378]
[1771161035758,4e-05,69536.0,69530.0,0.07191052]
[1771161036201,0.02292558,69534.0,69512.0,0.28771812]
[1771161036468,0.07191689,69525.0,69517.0,0.07212418]
[1771161036676,0.24894273,69528.0,69517.0,0.0002]
[1771161036883,0.09484556,69522.0,69517.0,0.0002]
[1771161037090,0.02292558,69522.0,69517.0,0.07212475]
[1771161037296,0.02292558,69522.0,69517.0,0.0002]
[1771161037509,0.07191787,69524.0,69517.0,0.0002]
[1771161037879,0.07191875,69523.0,69517.0,0.0002]
[1771161038085,0.07191776,69524.0,69517.0,0.07212477]
[1771161038231,4e-05,69518.0,69517.0,0.07204477]
[1771161038842,0.07195776,69524.0,69517.0,0.07204477]
[1771161039057,0.07055952,69524.0,69517.0,0.07204477]
[1771161039259,0.07191869,69523.0,69517.0,0.00012]
[1771161039585,4e-05,69524.0,69517.0,0.00012]
[1771161039931,0.0719586,69524.0,69517.0,0.07204477]
[1771161040348,4e-05,69524.0,69517.0,0.34293279]
[1771161041619,4e-05,69524.0,69517.0,0.00012]
[1771161041822,0.07195794,69524.0,69517.0,0.07204399]
[1771161042190,4e-05,69524.0,69517.0,0.00012]
[1771161042431,0.07195791,69524.0,69517.0,0.00012]
[1771161042757,0.07195791,69524.0,69517.0,0.07204478]
[1771161043747,4e-05,69524.0,69517.0,0.00012]
[1771161044171,0.07192144,69521.0,69517.0,0.00012]
[1771161044621,4e-05,69524.0,69517.0,0.00012]
[1771161044843,0.07195798,69524.0,69517.0,0.07204479]
[1771161048227,0.28764341,69531.0,69517.0,0.07204479]
[1771161048228,0.00044,69532.0,69525.0,0.24808182]
[1771161048435,0.07194601,69536.0,69527.0,0.07191398]
[1771161048891,0.07194601,69536.0,69522.0,4e-05]
[1771161048892,0.07191122,69531.0,69522.0,4e-05]
[1771161049126,0.07191122,69531.0,69523.0,0.07191796]
[1771161049549,4e-05,69536.0,69522.0,4e-05]
[1771161049550,0.26621451,69533.0,69522.0,4e-05]
[1771161049760,0.02435707,69524.0,69520.0,4e-05]
[1771161050137,0.07191618,69526.0,69520.0,4e-05]
[1771161050392,0.07191618,69526.0,69517.0,0.00012]
[1771161050393,0.2876663,69526.0,69517.0,0.00012]
[1771161050618,0.02435707,69524.0,69514.0,4e-05]
[1771161050845,0.07192692,69515.0,69514.0,4e-05]
[1771161051077,0.04853173,69515.0,69514.0,4e-05]
[1771161051870,0.04853173,69515.0,69505.0,0.36711853]
[1771161051871,0.26621451,69517.0,69503.0,1e-08]
[1771161052220,0.28769743,69518.0,69490.0,0.00030444]
[1771161052221,0.07193986,69503.0,69495.0,0.07194671]
[1771161052421,0.28773941,69508.0,69496.0,0.07194645]
[1771161052532,4e-05,69510.0,69498.0,0.24808182]
[1771161052533,0.0719352,69507.0,69498.0,0.24808182]
[1771161052740,0.0004,69525.0,69508.0,4e-05]
[1771161052955,0.02435707,69510.0,69500.0,4e-05]
[1771161053372,0.07193617,69507.0,69500.0,4e-05]
[1771161053826,0.07193623,69506.0,69500.0,4e-05]
[1771161054032,0.07193735,69505.0,69500.0,4e-05]
[1771161054229,0.07193656,69506.0,69500.0,4e-05]
[1771161054605,0.07193742,69505.0,69500.0,4e-05]
[1771161054776,0.07193662,69506.0,69500.0,4e-05]
[1771161055583,0.07193741,69505.0,69500.0,4e-05]
[1771161056917,0.07193857,69504.0,69500.0,4e-05]
[1771161057418,0.07194058,69502.0,69500.0,4e-05]
[1771161058723,0.07194058,69502.0,69493.0,0.01839645]
[1771161060036,0.07193481,69508.0,69500.0,0.0002]
[1771161060506,0.07193552,69507.0,69500.0,0.07214223]
[1771161060928,0.07193825,69505.0,69500.0,0.0002]
[1771161062310,0.07193624,69506.0,69500.0,0.0002]
[1771161062525,0.07193825,69505.0,69500.0,0.0002]
[1771161062721,0.07194294,69500.0,69493.0,0.0721496]
[1771161063503,0.07193936,69503.0,69496.0,0.07194563]
[1771161063707,0.07193751,69505.0,69498.0,0.07194381]
[1771161065294,0.31209159,69509.0,69495.0,0.0223443]
[1771161065295,0.07193562,69507.0,69500.0,0.07194241]
[1771161065500,0.07193432,69508.0,69501.0,0.07194039]
[1771161066192,0.07193792,69505.0,69498.0,0.07194409]
[1771161067621,0.07193792,69505.0,69442.0,0.4979183]
[1771161067622,0.07194994,69493.0,69486.0,0.07215624]
[1771161067846,0.07195777,69486.0,69483.0,0.0002]
[1771161068062,0.30724013,69509.0,69476.0,0.0002]
[1771161068063,0.07195901,69484.0,69476.0,0.0002]
[1771161068282,0.07196225,69481.0,69476.0,0.0002]
[1771161068888,0.07196118,69482.0,69476.0,0.0002]
[1771161068889,0.07196321,69480.0,69476.0,0.0002]
[1771161069532,6.205e-05,69481.0,69474.0,0.0002451]
[1771161069708,0.02435707,69478.0,69474.0,0.0002451]
[1771161069936,0.02435707,69478.0,69466.0,0.0002]
[1771161069937,0.07197326,69471.0,69466.0,0.0002]
[1771161070138,0.00094742,69470.0,69466.0,0.0002]
[1771161070287,0.26621451,69470.0,69462.0,0.07197975]
[1771161070660,0.26621451,69470.0,69463.0,0.07197987]
[1771161070849,0.26621451,69470.0,69464.0,0.0719793]
[1771161071056,0.26621451,69470.0,69463.0,0.07197987]
[1771161071264,0.02435707,69468.0,69460.0,0.41690872]
[1771161071462,0.36254732,69468.0,69460.0,0.3449251]
[1771161071825,0.29057158,69468.0,69461.0,0.07198212]
[1771161072034,0.28788546,69473.0,69460.0,0.0002451]
[1771161072035,0.07198226,69462.0,69460.0,0.0002451]
[1771161072232,0.07198226,69462.0,69459.0,0.0002]
[1771161072419,0.07198283,69461.0,69459.0,0.0002]
[1771161072615,0.07198283,69461.0,69457.0,0.0002]
[1771161072616,0.26621451,69467.0,69457.0,0.0002]
[1771161072822,0.26621451,69467.0,69452.0,0.0002]
[1771161072823,0.07198594,69458.0,69452.0,0.0002]
[1771161073670,0.09683696,69458.0,69452.0,0.0002]
[1771161073868,0.07198628,69458.0,69452.0,0.0002]
[1771161074069,0.07198628,69458.0,69452.0,0.00063221]
[1771161074499,0.07298628,69458.0,69452.0,0.00063221]
[1771161075092,0.07198397,69460.0,69452.0,0.00063221]
[1771161075500,0.55876397,69477.0,69453.0,0.25461363]
[1771161075702,0.25152384,69474.0,69453.0,0.02486318]
[1771161075902,0.07198108,69463.0,69452.0,0.00063221]
[1771161076103,0.25152384,69465.0,69452.0,0.00063221]
[1771161076309,0.001,69458.0,69452.0,0.00063221]
[1771161076650,0.001,69458.0,69455.0,0.07198898]
[1771161076806,0.09683248,69463.0,69455.0,0.07198898]
[1771161077006,0.07198146,69463.0,69455.0,0.07198898]
[1771161077645,0.32350562,69464.0,69455.0,0.07198898]
[1771161077785,0.25152384,69464.0,69452.0,0.07262408]
[1771161077987,0.07198489,69460.0,69452.0,0.07262408]
[1771161078626,0.25152384,69459.0,69452.0,0.07262408]
[1771161078827,0.07198489,69460.0,69452.0,0.07262408]
[1771161079033,0.07198489,69460.0,69453.0,0.07199098]
[1771161079248,0.07198489,69461.0,69445.0,0.28819549]
[1771161079249,0.07199187,69453.0,69445.0,0.0002]
[1771161079397,0.07199005,69455.0,69447.0,0.07237178]
[1771161079599,0.07199005,69456.0,69448.0,0.07199617]
[1771161080407,0.07198737,69457.0,69449.0,0.07199445]
[1771161080608,0.07198909,69455.0,69448.0,0.07199617]
[1771161081113,0.43181614,69475.0,69445.0,0.0002]
[1771161081114,0.07199631,69448.0,69445.0,0.0002]
[1771161081320,0.07199589,69449.0,69445.0,0.0002]
[1771161081526,0.07212534,69449.0,69441.0,0.07200287]
[1771161081731,0.00012945,69449.0,69440.0,0.09212]
[1771161081936,0.25165329,69449.0,69440.0,0.09212]
[1771161082276,0.07199711,69448.0,69440.0,0.09212]
[1771161082539,0.07199802,69447.0,69440.0,0.09212]
[1771161083259,0.00012945,69449.0,69440.0,0.09212]
[1771161083486,0.00012945,69449.0,69445.0,0.21549176]
[1771161083487,4e-05,69446.0,69445.0,0.21549176]
[1771161083819,4e-05,69446.0,69440.0,0.09212]
[1771161084016,0.07203938,69446.0,69440.0,0.09212]
[1771161084900,0.07200003,69445.0,69440.0,0.09212]
[1771161085343,0.07200003,69445.0,69440.0,0.09232]
[1771161085546,0.07203863,69446.0,69440.0,0.09232]
[1771161086814,0.07200427,69441.0,69438.0,0.0002]
[1771161088013,0.07200552,69440.0,69438.0,0.0002]
[1771161088365,0.001,69441.0,69434.0,4e-05]
[1771161088583,0.001,69441.0,69437.0,0.1435727]
[1771161088757,0.0720018,69443.0,69437.0,0.1435727]
[1771161088959,0.001,69441.0,69437.0,0.1435727]
[1771161089839,0.001,69441.0,69435.0,0.07200958]
[1771161090038,0.001,69441.0,69436.0,0.07200863]
[1771161090248,0.001,69441.0,69437.0,0.1435727]
[1771161090824,0.28802824,69448.0,69436.0,0.07200863]
[1771161090825,4e-05,69456.0,69436.0,4e-05]
[1771161091034,4e-05,69456.0,69450.0,0.1435727]
[1771161091241,0.0719939,69451.0,69444.0,0.07199964]
[1771161091440,4e-05,69456.0,69440.0,8e-05]
[1771161091766,0.07202819,69456.0,69449.0,0.07199471]
[1771161092072,0.07202822,69456.0,69449.0,0.07199496]
[1771161092627,0.07202822,69456.0,69449.0,0.21556766]
[1771161093029,0.07202799,69458.0,69446.0,0.2879904]
[1771161093030,4e-05,69458.0,69446.0,0.2879904]
[1771161093228,0.0004,69456.0,69454.0,0.07148912]
[1771161093461,0.0004,69456.0,69450.0,0.28797588]
[1771161093462,0.0004,69456.0,69450.0,0.0719936]
[1771161093658,0.0004,69456.0,69451.0,0.07199297]
[1771161093886,0.0004,69456.0,69450.0,0.0719936]
[1771161094802,0.07199192,69453.0,69446.0,4e-05]
[1771161095009,0.0004,69456.0,69446.0,4e-05]
[1771161095159,0.0004,69456.0,69451.0,0.07199257]
[1771161095795,0.0004,69456.0,69454.0,0.21556201]
[1771161097001,0.0004,69456.0,69455.0,0.1435727]
[1771161097449,7.46e-06,69458.0,69455.0,0.1435727]
[1771161098265,7.46e-06,69458.0,69455.0,0.21552145]
[1771161098465,7.46e-06,69458.0,69456.0,0.07198792]
[1771161098673,7.46e-06,69458.0,69457.0,0.09595548]
[1771161098822,7.46e-06,69458.0,69455.0,0.07198876]
[1771161099027,7.46e-06,69458.0,69455.0,0.16794424]
[1771161099254,7.46e-06,69458.0,69455.0,0.07198876]
[1771161099454,7.46e-06,69458.0,69454.0,0.07198943]
[1771161099776,7.46e-06,69458.0,69451.0,0.09595548]
[1771161100006,7.46e-06,69458.0,69455.0,0.07198821]
[1771161100205,7.46e-06,69458.0,69456.0,0.09595548]
[1771161100761,4e-05,69462.0,69452.0,0.15553538]
[1771161101087,4e-05,69462.0,69461.0,0.09595548]
[1771161101423,0.16421739,69468.0,69464.0,0.09595548]
[1771161101424,4e-05,69468.0,69464.0,0.09595548]
[1771161101628,4e-05,69468.0,69456.0,4e-05]
[1771161101819,4e-05,69468.0,69462.0,0.07198096]
[1771161102045,4e-05,69468.0,69466.0,0.07197763]
[1771161102288,4e-05,69468.0,69464.0,0.07197879]
[1771161102469,4e-05,69472.0,69460.0,8e-05]
[1771161102703,0.00016967,69472.0,69469.0,0.09595548]
[1771161102910,0.00016967,69472.0,69462.0,0.09595548]
[1771161103090,0.00016967,69472.0,69468.0,0.07197488]
[1771161103294,0.00016967,69472.0,69469.0,0.07197438]
[1771161103709,0.00016967,69472.0,69467.0,0.07197638]
[1771161103913,0.00016967,69472.0,69468.0,0.07197551]
[1771161104532,0.26404721,69472.0,69466.0,0.07197676]
[1771161104748,0.00016967,69472.0,69467.0,0.07197582]
[1771161105176,0.00016967,69472.0,69468.0,0.07197552]
[1771161105399,0.28786227,69478.0,69462.0,0.09595548]
[1771161105400,1e-08,69479.0,69478.0,0.07196522]
[1771161105604,1e-08,69479.0,69473.0,0.07196937]
[1771161107921,0.07200319,69480.0,69473.0,0.07196937]
[1771161107922,0.33568846,69480.0,69473.0,0.07196937]
[1771161108575,0.07196432,69479.0,69473.0,0.07196937]
[1771161109865,0.0719609,69483.0,69476.0,0.07196656]
[1771161110256,0.07196011,69483.0,69472.0,0.28788352]
[1771161110455,0.07195445,69489.0,69482.0,0.07196078]
[1771161110684,0.071957,69486.0,69479.0,0.07196353]
[1771161111040,0.072357,69486.0,69479.0,0.07196353]
[1771161112176,0.0004,69486.0,69480.0,0.07196283]
[1771161112638,0.0004,69486.0,69481.0,0.07196181]
[1771161112864,0.0004,69486.0,69480.0,0.07196283]
[1771161113301,4e-05,69482.0,69480.0,0.07196283]
[1771161115210,0.07196271,69481.0,69467.0,0.28790445]
[1771161115413,0.26387754,69480.0,69472.0,0.07197055]
[1771161115822,0.26387754,69480.0,69474.0,0.0719686]
[1771161116232,4e-05,69484.0,69483.0,0.07196004]
[1771161116823,0.28783693,69494.0,69478.0,0.09595548]
[1771161116824,4e-05,69494.0,69484.0,0.09595548]
[1771161117028,4e-05,69494.0,69489.0,0.09595548]
[1771161117229,4e-05,69494.0,69488.0,0.07195424]
[1771161117666,4e-05,69494.0,69488.0,0.0719545]
[1771161118707,4e-05,69494.0,69489.0,0.0719535]
[1771161118907,4e-05,69494.0,69488.0,0.07195462]
[1771161119089,4e-05,69494.0,69487.0,0.07195548]
[1771161119090,4e-05,69494.0,69490.0,0.07195178]
[1771161119286,4e-05,69494.0,69485.0,0.07195797]
[1771161119428,0.07195242,69491.0,69484.0,0.07195899]
[1771161119623,0.07195242,69491.0,69480.0,8e-05]
[1771161119834,0.07195463,69489.0,69481.0,0.07196198]
[1771161120262,0.07195595,69487.0,69480.0,8e-05]
[1771161120462,0.26387754,69491.0,69478.0,4e-05]
[1771161120671,4e-05,69492.0,69474.0,4e-05]
[1771161120672,0.07196339,69480.0,69474.0,4e-05]
[1771161120873,0.26387754,69483.0,69472.0,4e-05]
[1771161121072,4e-05,69482.0,69470.0,0.26089783]
[1771161121302,4e-05,69482.0,69470.0,0.40370357]
[1771161121505,4e-05,69482.0,69479.0,0.0719635]
[1771161122437,4e-05,69486.0,69480.0,0.0007224]
[1771161122641,4e-05,69488.0,69485.0,0.0719579]
[1771161122865,0.07199077,69492.0,69487.0,0.0719559]
[1771161122866,4e-05,69490.0,69487.0,0.0719559]
[1771161123072,4e-05,69490.0,69486.0,0.09595548]
[1771161123073,0.0004,69512.0,69503.0,0.07193934]
[1771161123278,0.0004,69512.0,69490.0,0.09603548]
[1771161123279,0.07194034,69503.0,69490.0,0.09603548]
[1771161123875,0.07194427,69499.0,69490.0,0.16798817]
[1771161124115,0.00052964,69505.0,69490.0,0.09603548]
[1771161124116,0.07193889,69504.0,69490.0,0.09603548]
[1771161124308,0.07194045,69502.0,69494.0,0.07194837]
[1771161124818,0.00052964,69505.0,69490.0,0.16798763]
[1771161125027,0.07234354,69499.0,69491.0,0.14274427]
[1771161125239,0.07194466,69498.0,69491.0,0.07079327]
[1771161125444,0.07194466,69498.0,69491.0,0.14274489]
[1771161125646,0.07234364,69499.0,69491.0,0.14274489]
[1771161126070,0.07234364,69499.0,69490.0,0.08950979]
[1771161126412,0.07234364,69499.0,69491.0,0.07195162]
[1771161126613,0.0004,69499.0,69492.0,0.07195064]
[1771161126843,0.0004,69499.0,69493.0,0.07194875]
[1771161127693,0.0004,69499.0,69492.0,0.07195064]
[1771161127907,0.07195158,69492.0,69483.0,0.07195966]
[1771161128115,0.07195158,69492.0,69481.0,0.07196149]
[1771161128116,0.0719498,69493.0,69485.0,0.07195721]
[1771161128326,4e-05,69494.0,69479.0,0.26105783]
[1771161128571,4e-05,69496.0,69492.0,0.09273264]
[1771161128994,0.0004,69499.0,69497.0,0.07194531]
[1771161129199,4e-05,69500.0,69497.0,0.09273264]
[1771161129605,0.00052964,69505.0,69497.0,0.09273264]
[1771161129806,0.07194025,69503.0,69494.0,0.07194845]
[1771161130010,0.26387754,69501.0,69494.0,0.07194845]
[1771161130287,0.07194108,69502.0,69494.0,0.07194845]
[1771161130867,0.07194828,69495.0,69492.0,4e-05]
[1771161131079,0.26387754,69503.0,69490.0,4e-05]
[1771161131080,0.07194969,69493.0,69490.0,4e-05]
[1771161131235,0.0719516,69492.0,69490.0,4e-05]
[1771161131435,0.07194996,69493.0,69490.0,4e-05]
[1771161132108,0.28778055,69498.0,69486.0,4e-05]
[1771161132381,0.07196223,69481.0,69479.0,0.0002]
[1771161132881,0.07196223,69481.0,69474.0,0.07196933]
[1771161133114,0.04855486,69481.0,69474.0,0.07196933]
[1771161134035,0.0719631,69482.0,69473.0,0.07197001]
[1771161134260,0.07196334,69480.0,69473.0,0.07197001]
[1771161134491,0.28781212,69490.0,69472.0,0.07217088]
[1771161134492,0.07196758,69476.0,69472.0,0.0002]
[1771161134705,0.0719704,69473.0,69472.0,0.0002]
[1771161134984,0.0719704,69473.0,69458.0,0.26548613]
[1771161134985,0.07197326,69471.0,69463.0,0.07197979]
[1771161135163,0.07197932,69465.0,69455.0,0.0002]
[1771161135357,0.07197932,69465.0,69457.0,0.07198626]
[1771161135762,0.07198011,69464.0,69457.0,0.07198626]
[1771161136409,0.07198095,69463.0,69455.0,0.07218875]
[1771161138261,0.07196982,69474.0,69466.0,0.07197668]
[1771161138460,0.07209703,69476.0,69468.0,0.16470731]
[1771161138800,0.07197221,69472.0,69463.0,0.16471271]
[1771161138989,0.07197221,69472.0,69464.0,0.07197937]
[1771161139178,0.2442948,69473.0,69455.0,0.0002]
[1771161139379,0.07198014,69464.0,69455.0,0.0002]
[1771161139591,0.0719808,69463.0,69455.0,0.0721887]
[1771161140838,0.07198204,69462.0,69455.0,0.07218888]
[1771161141216,0.07198204,69462.0,69455.0,0.0002]
[1771161141564,0.31627175,69467.0,69458.0,0.07198594]
[1771161141698,0.2442948,69467.0,69455.0,0.07218836]
[1771161141905,0.07197984,69464.0,69457.0,0.07198683]
[1771161142256,0.07197973,69464.0,69463.0,0.0002]
[1771161142667,0.07197144,69472.0,69463.0,0.0002]